fUSD/lending_fUSD_20241210
["ID","MTS","AMOUNT","RATE_DAILY","PERIOD"]
[344801438,1733791884142,-633.92,0.00011099,2]
[344801439,1733791884152,-858.94,0.00011099,2]
[344801440,1733791884163,-633.92,0.00011099,2]
[344801441,1733791884173,-556.34,0.00011099,2]
[344801442,1733791884183,-858.94,0.00011099,2]
[344801443,1733791884192,-634.11525194,0.00011099,2]
[344801444,1733791884202,-556.34,0.00011099,2]
[344801445,1733791884214,-858.94,0.00011099,2]
[344801446,1733791884223,-2228.32,0.00011099,2]
[344801447,1733791884234,-556.34,0.00011099,2]
[344801448,1733791884244,-858.94,0.00011099,2]
[344801449,1733791884253,-2228.32,0.00011099,2]
[344801450,1733791884263,-556.34,0.00011099,2]
[344801451,1733791884273,-858.96,0.00011099,2]
[344801452,1733791884284,-2228.32,0.00011099,2]
[344801453,1733791884294,-556.34,0.00011099,2]
[344801454,1733791884303,-556.52212734,0.00011099,2]
[344801455,1733791884313,-2228.32,0.00011099,2]
[344801456,1733791884324,-2228.32,0.00011099,2]
[344801457,1733791884333,-2228.32,0.00011099,2]
[344801458,1733791884346,-2228.32,0.00011099,2]
[344801459,1733791884356,-2228.32,0.00011099,2]
[344801460,1733791884366,-2228.32,0.00011099,2]
[344801461,1733791884376,-2228.32,0.00011099,2]
[344801462,1733791884386,-2228.32,0.00011099,2]
[344801463,1733791884396,-2228.32,0.00011099,2]
[344801464,1733791884406,-2228.32,0.00011099,2]
[344801465,1733791884416,-2228.32,0.00011099,2]
[344801466,1733791884426,-2228.32,0.00011099,2]
[344801467,1733791884436,-2228.35601028,0.00011099,2]
[344801468,1733791884446,-4659.09,0.00011099,2]
[344801469,1733791884455,-4659.09,0.00011099,2]
[344801470,1733791884467,-4659.09,0.00011099,2]
[344801471,1733791884477,-4659.09,0.00011099,2]
[344801472,1733791884486,-4659.09,0.00011099,2]
[344801473,1733791884496,-4659.32944295,0.00011099,2]
[344801474,1733791884506,-6928.27,0.00011099,2]
[344801475,1733791884516,-6928.27,0.00011099,2]
[344801476,1733791884526,-6928.27,0.00011099,2]
[344801477,1733791884536,-6928.27,0.00011099,2]
[344801478,1733791884548,-6928.27,0.00011099,2]
[344801479,1733791884559,-6928.27,0.00011099,2]
[344801480,1733791884569,-6928.27,0.00011099,2]
[344801481,1733791884579,-6928.27,0.00011099,2]
[344801482,1733791884589,-6928.27,0.00011099,2]
[344801483,1733791884599,-6928.27,0.00011099,2]
[344801484,1733791884610,-6928.27,0.00011099,2]
[344801485,1733791884620,-6928.27,0.00011099,2]
[344801486,1733791884631,-6928.27,0.00011099,2]
[344801487,1733791884640,-6928.27,0.00011099,2]
[344801488,1733791884650,-6928.27,0.00011099,2]
[344801489,1733791884660,-6928.37811262,0.00011099,2]
[344801490,1733791884669,-500.0,0.00011099,2]
[344801491,1733791884680,-500.0,0.00011099,2]
[344801492,1733791884689,-500.0,0.00011099,2]
[344801493,1733791884699,-480.10203462,0.00011099,2]
[344801494,1733791884711,-3703.77,0.00011099,2]
[344801495,1733791884721,-3703.77,0.00011099,2]
[344801496,1733791884731,-3703.77,0.00011099,2]
[344801497,1733791884740,-3703.77,0.00011099,2]
[344801498,1733791884750,-3703.77,0.00011099,2]
[344801499,1733791884760,-3703.81469644,0.00011099,2]
[344801500,1733791884946,-4468.46,0.00011099,2]
[344801501,1733791884956,-4468.46,0.00011099,2]
[344801502,1733791884966,-4468.46,0.00011099,2]
[344801503,1733791884975,-4468.46,0.00011099,2]
[344801504,1733791884984,-4468.46,0.00011099,2]
[344801505,1733791884994,-4468.46,0.00011099,2]
[344801506,1733791885004,-4468.46,0.00011099,2]
[344801507,1733791885013,-4468.46,0.00011099,2]
[344801508,1733791885022,-4468.46,0.00011099,2]
[344801509,1733791885032,-4468.46,0.00011099,2]
[344801510,1733791885041,-4468.46,0.00011099,2]
[344801511,1733791885051,-4468.46,0.00011099,2]
[344801512,1733791885061,-4468.46,0.00011099,2]
[344801513,1733791885071,-4468.46,0.00011099,2]
[344801514,1733791885081,-4468.46,0.00011099,2]
[344801515,1733791885092,-4468.46572257,0.00011099,2]
[344801516,1733791885101,-1067.31,0.00011099,2]
[344801517,1733791885111,-1067.31,0.00011099,2]
[344801518,1733791885120,-1067.31,0.00011099,2]
[344801519,1733791885130,-1067.31,0.00011099,2]
[344801520,1733791885140,-1067.31,0.00011099,2]
[344801521,1733791885149,-1067.43734536,0.00011099,2]
[344801522,1733791885159,-519.98,0.00011099,2]
[344801523,1733791885169,-1277.58,0.00011099,2]
[344801524,1733791885178,-1277.58,0.00011099,2]
[344801525,1733791885188,-1277.58,0.00011099,2]
[344801526,1733791885198,-1277.58,0.00011099,2]
[344801527,1733791885208,-1277.58,0.00011099,2]
[344801528,1733791885218,-1277.58,0.00011099,2]
[344801529,1733791885230,-1277.58,0.00011099,2]
[344801530,1733791885239,-1277.58,0.00011099,2]
[344801531,1733791885249,-1277.58,0.00011099,2]
[344801532,1733791885259,-1277.58,0.00011099,2]
[344801533,1733791885269,-1277.58,0.00011099,2]
[344801534,1733791885279,-1277.58,0.00011099,2]
[344801535,1733791885288,-1277.58,0.00011099,2]
[344801536,1733791885298,-1277.58,0.00011099,2]
[344801537,1733791885308,-1277.58,0.00011099,2]
[344801538,1733791885318,-1277.72,0.00011099,2]
[344801539,1733791885327,-1351.35,0.00011099,2]
[344801540,1733791885337,-1351.35,0.00011099,2]
[344801541,1733791885346,-1351.35,0.00011099,2]
[344801542,1733791885356,-1351.35,0.00011099,2]
[344801543,1733791885365,-1351.35,0.00011099,2]
[344801544,1733791885374,-1351.51274947,0.00011099,2]
[344801545,1733791885384,-1450.7,0.00011099,2]
[344801546,1733791885394,-1450.7,0.00011099,2]
[344801547,1733791885404,-500.0,0.00011099,2]
[344801548,1733791885414,-1450.7,0.00011099,2]
[344801549,1733791885424,-500.0,0.00011099,2]
[344801550,1733791885433,-1450.7,0.00011099,2]
[344801551,1733791885442,-500.0,0.00011099,2]
[344801552,1733791885452,-1450.7,0.00011099,2]
[344801553,1733791885464,-449.4,0.00011099,2]
[344801554,1733791885474,-1450.82628023,0.00011099,2]
[344801555,1733791885485,-4193244.07943463,0.000111,2]
[344801556,1733791885495,-145911.49204636,0.000111,2]
[344801557,1733791885504,-55965287.55487831,0.000111,2]
[344801558,1733791886187,-909.74,0.00011097,2]
[344801559,1733791886197,-2774.46756943,0.000111,2]
[344801560,1733791886209,-3018.2552748,0.000111,2]
[344801561,1733791886221,-1550.40906742,0.000111,2]
[344801562,1733791886246,-500.0,0.00010958,2]
[344801563,1733791886256,-32607.82841945,0.000111,2]
[344801564,1733791886387,-909.74,0.00011098,2]
[344801565,1733791886397,-909.74,0.00011098,2]
[344801566,1733791886407,-909.74,0.00011098,2]
[344801567,1733791886417,-909.74,0.00011098,2]
[344801568,1733791886427,-909.74,0.00011098,2]
[344801569,1733791886436,-909.74,0.00011098,2]
[344801570,1733791886446,-909.74282765,0.00011098,2]
[344801571,1733791886455,-142064.20352656,0.000111,2]
[344801572,1733791886470,-322.55963275,0.000111,2]
[344801573,1733791886482,-3726.08503599,0.000111,2]
[344801574,1733791886493,-978.81374015,0.000111,2]
[344801575,1733791886504,-1699.26,0.000111,2]
[344801576,1733791886551,-69.21525735,0.000111,2]
[344801577,1733791886564,-477.74000175,0.000111,2]
[344801578,1733791886576,-1644.50522782,0.000111,2]
[344801579,1733791886587,-365135.67090001,0.000111,2]
[344801580,1733791886598,-935.86665788,0.000111,2]
[344801581,1733791886784,-877.0,0.00010958,2]
[344801582,1733791886794,-446.0,0.000111,2]
[344801583,1733791886805,-17779.080096,0.000111,2]
[344801584,1733791886816,-10073.24279577,0.000111,2]
[344801585,1733791886829,-1774.74878775,0.000111,2]
[344801586,1733791886859,-877.0,0.00010958,2]
[344801587,1733791886868,-4142.84813071,0.000111,2]
[344801588,1733791886879,-12947.35,0.000111,2]
[344801589,1733791886894,-4619.81813934,0.000111,2]
[344801590,1733791887055,-877.0,0.00010958,2]
[344801591,1733791887065,-877.0,0.00010958,2]
[344801592,1733791887075,-877.0,0.00010958,2]
[344801593,1733791887084,-877.0,0.00010958,2]
[344801594,1733791887094,-877.0,0.00010958,2]
[344801595,1733791887103,-877.0,0.00010958,2]
[344801596,1733791887113,-877.0,0.00010958,2]
[344801597,1733791887123,-500.0,0.00010958,2]
[344801598,1733791887134,-877.0,0.00010958,2]
[344801599,1733791887143,-16826.03567189,0.000111,2]
[344801600,1733791887155,-1540.86524691,0.000111,2]
[344801601,1733791887166,-1830.7112233,0.000111,2]
[344801602,1733791887177,-140558.14157443,0.000111,2]
[344801603,1733791887314,-340.762495,0.000111,2]
[344801604,1733791887384,-33385.68537463,0.000111,2]
[344801605,1733791887397,-10403.1031293,0.000111,2]
[344801606,1733791887409,-1776.27511841,0.000111,2]
[344801607,1733791995968,500.0,0.00022008,120]
[344801608,1733792000339,2000.0,0.00022484,120]
[344801609,1733792020785,200.0,0.00022216,120]
[344801610,1733792103937,155.0,0.000111,30]
[344801614,1733792403682,155.0,0.000111,30]
[344801618,1733792599754,2000.0,0.00022446,120]
[344801619,1733792627950,200.0,0.00022125,120]
[344801620,1733792697958,12063.48026251,0.000122,15]
[344801621,1733792702987,155.0,0.000111,30]
[344801633,1733793003266,155.0,0.000111,30]
[344801636,1733793032055,-974.76,8.235e-05,2]
[344801637,1733793032066,-261.84418331,9.123e-05,2]
[344801638,1733793032078,-238.15581669,9.123e-05,2]
[344801639,1733793032087,-500.0,9.479e-05,2]
[344801640,1733793032096,-150.0,9.562e-05,2]
[344801641,1733793032105,-275.64,9.979e-05,2]
[344801642,1733793032117,-200.0,9.982e-05,2]
[344801643,1733793032130,-250.0,0.00010011,2]
[344801644,1733793032140,-157.97,0.00010022,2]
[344801645,1733793032150,-1000.0,0.00010153,2]
[344801646,1733793032160,-250.0,0.00010153,2]
[344801647,1733793032170,-8176.81761707,0.00010153,2]
[344801648,1733793032181,-454.92529219,0.00010153,2]
[344801649,1733793032193,-585.34385842,0.00010153,2]
[344801650,1733793032206,-1407.82664206,0.00010153,2]
[344801651,1733793032217,-871.499988,0.00010153,2]
[344801652,1733793032250,-10057.44314075,0.00010153,2]
[344801653,1733793032262,-2346.14346151,0.00010153,2]
[344801654,1733793032272,-1000.0,0.00010153,2]
[344801655,1733793032281,-974.76,0.00010499,2]
[344801656,1733793032291,-168.358,0.00010739,2]
[344801657,1733793032300,-2603.933,0.00010739,2]
[344801658,1733793032310,-980.38,0.00010858,2]
[344801659,1733793032320,-1000.0,0.00010858,2]
[344801660,1733793032330,-1668.43759964,0.00010858,2]
[344801661,1733793032339,-1668.43759964,0.00010858,2]
[344801662,1733793032349,-163.75293808,0.00010858,2]
[344801663,1733793032364,-2147.29906192,0.00010858,2]
[344801664,1733793032374,-163.54264776,0.00010948,2]
[344801665,1733793032383,-200.0,0.00010957,2]
[344801666,1733793032393,-200.0,0.00010957,2]
[344801667,1733793032403,-200.0,0.00010957,2]
[344801668,1733793032413,-200.0,0.00010957,3]
[344801670,1733793032422,-200.0,0.00010957,3]
[344801671,1733793032433,-200.0,0.00010957,3]
[344801673,1733793032443,-500.0,0.00010958,2]
[344801675,1733793032452,-500.0,0.00010958,2]
[344801677,1733793032461,-500.0,0.00010958,2]
[344801679,1733793032471,-500.0,0.00010958,2]
[344801681,1733793032480,-500.0,0.00010958,2]
[344801682,1733793032489,-500.0,0.00010958,2]
[344801683,1733793032499,-389.93633526,0.00010958,2]
[344801684,1733793032509,-668.66,0.00010958,2]
[344801685,1733793032518,-668.66,0.00010958,2]
[344801686,1733793032528,-668.66,0.00010958,2]
[344801687,1733793032537,-668.66,0.00010958,2]
[344801688,1733793032547,-668.66,0.00010958,2]
[344801689,1733793032557,-668.66,0.00010958,2]
[344801690,1733793032566,-558.27726758,0.00010958,2]
[344801691,1733793032579,-110.38273242,0.00010958,2]
[344801692,1733793032588,-668.66,0.00010958,2]
[344801693,1733793032597,-14.30726758,0.00010958,2]
[344801694,1733793032613,-654.35273242,0.00010958,2]
[344801695,1733793032622,-668.66,0.00010958,2]
[344801696,1733793032631,-668.66,0.00010958,2]
[344801697,1733793032641,-668.66,0.00010958,2]
[344801698,1733793032651,-668.66,0.00010958,2]
[344801699,1733793032660,-668.66,0.00010958,2]
[344801700,1733793032670,-668.66,0.00010958,2]
[344801701,1733793032680,-500.0,0.00010958,2]
[344801702,1733793032689,-500.0,0.00010958,2]
[344801703,1733793032699,-500.0,0.00010958,2]
[344801704,1733793032708,-367.25,0.00010958,2]
[344801705,1733793032718,-500.0,0.00010958,2]
[344801706,1733793032727,-500.0,0.00010958,2]
[344801707,1733793032737,-217.15767026,0.00010958,2]
[344801708,1733793032746,-500.0,0.00010958,2]
[344801709,1733793032756,-162.57771043,0.00010958,2]
[344801710,1733793032765,-500.0,0.00010958,2]
[344801711,1733793032775,-500.0,0.00010958,2]
[344801712,1733793032784,-500.0,0.00010958,2]
[344801713,1733793032793,-500.0,0.00010958,2]
[344801714,1733793032802,-500.0,0.00010958,2]
[344801715,1733793032811,-500.0,0.00010958,2]
[344801716,1733793032821,-500.0,0.00010958,2]
[344801717,1733793032831,-500.0,0.00010958,2]
[344801718,1733793032840,-243.14144209,0.00010958,2]
[344801719,1733793032849,-500.0,0.00010958,2]
[344801720,1733793032860,-500.0,0.00010958,2]
[344801721,1733793032869,-500.0,0.00010958,2]
[344801722,1733793032878,-500.0,0.00010958,2]
[344801723,1733793032887,-500.0,0.00010958,2]
[344801724,1733793032896,-495.77883346,0.00010958,2]
[344801725,1733793032910,-4.22116654,0.00010958,2]
[344801726,1733793032919,-500.0,0.00010958,2]
[344801727,1733793032928,-188.22698917,0.00010958,2]
[344801728,1733793032940,-311.77301083,0.00010958,2]
[344801729,1733793032949,-105.34895751,0.00010958,2]
[344801730,1733793032960,-394.65104249,0.00010958,2]
[344801731,1733793032969,-500.0,0.00010958,2]
[344801732,1733793032978,-233.69788311,0.00010958,2]
[344801733,1733793032989,-266.30211689,0.00010958,2]
[344801734,1733793032998,-500.0,0.00010958,2]
[344801735,1733793033007,-500.0,0.00010958,2]
[344801736,1733793033017,-500.0,0.00010958,2]
[344801737,1733793033026,-500.0,0.00010958,2]
[344801738,1733793033036,-500.0,0.00010958,2]
[344801739,1733793033046,-500.0,0.00010958,2]
[344801740,1733793033055,-500.0,0.00010958,2]
[344801741,1733793033065,-617.67,0.00010958,2]
[344801742,1733793033074,-377.61434358,0.00010958,2]
[344801743,1733793033087,-122.38565642,0.00010958,2]
[344801744,1733793033097,-500.0,0.00010958,2]
[344801745,1733793033106,-178.68696247,0.00010958,2]
[344801746,1733793033123,-321.31303753,0.00010958,2]
[344801747,1733793033136,-500.0,0.00010958,2]
[344801748,1733793033145,-500.0,0.00010958,2]
[344801749,1733793033155,-500.0,0.00010958,2]
[344801750,1733793033167,-500.0,0.00010958,2]
[344801751,1733793033176,-500.0,0.00010958,2]
[344801752,1733793033186,-500.0,0.00010958,2]
[344801753,1733793033196,-500.0,0.00010958,2]
[344801754,1733793033206,-500.0,0.00010958,2]
[344801755,1733793033216,-500.0,0.00010958,2]
[344801756,1733793033227,-500.0,0.00010958,2]
[344801757,1733793033237,-50.96262857,0.00010958,2]
[344801758,1733793033262,-429.17,0.00010958,2]
[344801759,1733793033274,-19.86737143,0.00010958,2]
[344801760,1733793033283,-455.44132817,0.00010958,2]
[344801761,1733793033295,-44.55867183,0.00010958,2]
[344801762,1733793033306,-500.0,0.00010958,2]
[344801763,1733793033315,-500.0,0.00010958,2]
[344801764,1733793033324,-500.0,0.00010958,2]
[344801765,1733793033334,-500.0,0.00010958,2]
[344801766,1733793033344,-500.0,0.00010958,2]
[344801767,1733793033354,-500.0,0.00010958,2]
[344801768,1733793033366,-500.0,0.00010958,2]
[344801769,1733793033376,-500.0,0.00010958,2]
[344801770,1733793033385,-500.0,0.00010958,2]
[344801771,1733793033395,-500.0,0.00010958,2]
[344801772,1733793033405,-500.0,0.00010958,2]
[344801773,1733793033414,-500.0,0.00010958,2]
[344801774,1733793033424,-500.0,0.00010958,2]
[344801775,1733793033434,-500.0,0.00010958,2]
[344801776,1733793033443,-500.0,0.00010958,2]
[344801777,1733793033452,-500.0,0.00010958,2]
[344801778,1733793033462,-500.0,0.00010958,2]
[344801779,1733793033471,-201.32586339,0.00010958,2]
[344801780,1733793033652,-298.67413661,0.00010958,2]
[344801781,1733793033662,-500.0,0.00010958,2]
[344801782,1733793033672,-500.0,0.00010958,2]
[344801783,1733793033681,-500.0,0.00010958,2]
[344801784,1733793033690,-500.0,0.00010958,2]
[344801785,1733793033700,-500.0,0.00010958,2]
[344801786,1733793033709,-87.79580603,0.00010958,2]
[344801787,1733793033725,-412.20419397,0.00010958,2]
[344801788,1733793033734,-500.0,0.00010958,2]
[344801789,1733793033744,-500.0,0.00010958,2]
[344801790,1733793033753,-500.0,0.00010958,2]
[344801791,1733793033763,-500.0,0.00010958,2]
[344801792,1733793033772,-447.29992572,0.00010958,2]
[344801793,1733793033782,-445.4697564,0.00010958,2]
[344801794,1733793033797,-54.5302436,0.00010958,2]
[344801795,1733793033806,-500.0,0.00010958,2]
[344801796,1733793033816,-500.0,0.00010958,2]
[344801797,1733793033826,-500.0,0.00010958,2]
[344801798,1733793033836,-500.0,0.00010958,2]
[344801799,1733793033846,-500.0,0.00010958,2]
[344801800,1733793033857,-203.94,0.00010958,2]
[344801801,1733793033869,-500.0,0.00010958,2]
[344801802,1733793033879,-500.0,0.00010958,2]
[344801803,1733793033888,-385.73451175,0.00010958,2]
[344801804,1733793033898,-500.0,0.00010958,2]
[344801805,1733793033908,-500.0,0.00010958,2]
[344801806,1733793033918,-500.0,0.00010958,2]
[344801807,1733793033928,-500.0,0.00010958,2]
[344801808,1733793033938,-500.0,0.00010958,2]
[344801809,1733793033947,-500.0,0.00010958,2]
[344801810,1733793033957,-500.0,0.00010958,2]
[344801811,1733793033967,-500.0,0.00010958,2]
[344801812,1733793033977,-500.0,0.00010958,2]
[344801813,1733793033988,-500.0,0.00010958,2]
[344801814,1733793033998,-500.0,0.00010958,2]
[344801815,1733793034008,-503.96410605,0.00010958,2]
[344801816,1733793034019,-501.75008464,0.00010958,2]
[344801817,1733793034028,-500.0,0.00010958,2]
[344801818,1733793034039,-500.0,0.00010958,2]
[344801819,1733793034048,-500.0,0.00010958,2]
[344801820,1733793034058,-500.0,0.00010958,2]
[344801821,1733793034068,-500.0,0.00010958,2]
[344801822,1733793034077,-464.93495137,0.00010958,2]
[344801823,1733793034095,-35.06504863,0.00010958,2]
[344801824,1733793034105,-500.0,0.00010958,2]
[344801825,1733793034123,-500.0,0.00010958,2]
[344801826,1733793034139,-500.0,0.00010958,2]
[344801827,1733793034150,-425.59695946,0.00010958,2]
[344801828,1733793034160,-500.0,0.00010958,2]
[344801829,1733793034173,-360.7409884,0.00010958,2]
[344801830,1733793034183,-500.0,0.00010958,2]
[344801831,1733793034194,-500.0,0.00010958,2]
[344801832,1733793034206,-427.27805141,0.00010958,2]
[344801833,1733793034219,-529.52,0.00010958,2]
[344801834,1733793034229,-500.0,0.00010958,2]
[344801835,1733793034239,-500.0,0.00010958,2]
[344801836,1733793034251,-500.0,0.00010958,2]
[344801837,1733793034261,-70.09579391,0.00010958,2]
[344801843,1733793038119,-419.275395,0.00010958,2]
[344801846,1733793038606,-10.62881109,0.00010958,2]
[344801847,1733793038617,-500.0,0.00010958,2]
[344801848,1733793038627,-500.0,0.00010958,2]
[344801850,1733793038636,-500.0,0.00010958,2]
[344801852,1733793038646,-500.0,0.00010958,2]
[344801854,1733793038655,-500.0,0.00010958,2]
[344801856,1733793038665,-606.23,0.00010958,2]
[344801861,1733793038914,-500.0,0.00010958,2]
[344801862,1733793038923,-500.0,0.00010958,2]
[344801863,1733793038933,-500.0,0.00010958,2]
[344801864,1733793038942,-500.0,0.00010958,2]
[344801865,1733793038951,-500.0,0.00010958,2]
[344801866,1733793038961,-500.0,0.00010958,2]
[344801867,1733793038971,-479.14118891,0.00010958,2]
[344801868,1733793038984,-20.85881109,0.00010958,2]
[344801869,1733793038993,-500.0,0.00010958,2]
[344801870,1733793039002,-500.0,0.00010958,2]
[344801871,1733793039012,-1131.48,0.00010958,2]
[344801872,1733793039021,-1131.48,0.00010958,2]
[344801873,1733793039031,-1131.48,0.00010958,2]
[344801874,1733793039041,-1131.48,0.00010958,2]
[344801875,1733793039051,-1131.48,0.00010958,2]
[344801876,1733793039061,-1131.48,0.00010958,2]
[344801877,1733793039070,-1131.48,0.00010958,2]
[344801878,1733793039080,-1131.48,0.00010958,2]
[344801879,1733793039089,-1131.48,0.00010958,2]
[344801880,1733793039099,-1131.48,0.00010958,2]
[344801881,1733793039108,-1131.48,0.00010958,2]
[344801882,1733793039120,-1131.48,0.00010958,2]
[344801883,1733793039134,-1131.48,0.00010958,2]
[344801884,1733793039143,-1131.48,0.00010958,2]
[344801885,1733793039153,-1716.52140141,0.00010958,2]
[344801888,1733793040167,-484.79859859,0.00010958,2]
[344801889,1733793040176,-864.36045141,0.00010958,2]
[344801890,1733793040187,-1336.95954859,0.00010958,2]
[344801891,1733793040197,-1568.42045141,0.00010958,2]
[344801892,1733793040210,-475.858958,0.00010958,2]
[344801893,1733793040314,-157.04059059,0.00010958,2]
[344801894,1733793040324,-1702.57716941,0.00010958,2]
[344801895,1733793040335,-498.74283059,0.00010958,2]
[344801896,1733793040345,-2201.32,0.00010958,2]
[344801897,1733793040354,-2201.32,0.00010958,2]
[344801898,1733793040363,-2201.32,0.00010958,2]
[344801899,1733793040373,-2201.32,0.00010958,2]
[344801900,1733793040383,-572.88480575,0.00010958,2]
[344801901,1733793040405,-305.0000025,0.00010958,2]
[344801910,1733793043411,-1323.43519175,0.00010958,2]
[344801911,1733793043420,-500.0,0.00010958,2]
[344801912,1733793043429,-500.0,0.00010958,2]
[344801913,1733793043438,-2201.32,0.00010958,2]
[344801914,1733793043448,-2141.24480765,0.00010958,2]
[344801915,1733793043460,-60.07519235,0.00010958,2]
[344801916,1733793043470,-2201.32,0.00010958,2]
[344801917,1733793043479,-610.41,0.00010958,2]
[344801918,1733793043489,-2201.32,0.00010958,2]
[344801919,1733793043499,-2201.32,0.00010958,2]
[344801920,1733793043508,-500.0,0.00010958,2]
[344801921,1733793043518,-500.0,0.00010958,2]
[344801922,1733793043527,-500.0,0.00010958,2]
[344801923,1733793043538,-865.39,0.00010958,2]
[344801924,1733793043547,-865.39,0.00010958,2]
[344801925,1733793043557,-865.39,0.00010958,2]
[344801926,1733793043567,-865.39,0.00010958,2]
[344801927,1733793043577,-865.39,0.00010958,2]
[344801928,1733793043586,-865.39,0.00010958,2]
[344801929,1733793043596,-865.39,0.00010958,2]
[344801930,1733793043606,-865.39,0.00010958,2]
[344801931,1733793043615,-865.39,0.00010958,2]
[344801932,1733793043625,-865.39,0.00010958,2]
[344801933,1733793043635,-865.39,0.00010958,2]
[344801934,1733793043644,-579.72,0.00010958,2]
[344801935,1733793043653,-865.39,0.00010958,2]
[344801936,1733793043662,-865.39,0.00010958,2]
[344801937,1733793043672,-579.72,0.00010958,2]
[344801938,1733793043681,-865.39,0.00010958,2]
[344801939,1733793043691,-579.72,0.00010958,2]
[344801940,1733793043700,-314.53974288,0.00010958,2]
[344801941,1733793043710,-500.0,0.00010958,2]
[344801942,1733793043719,-500.0,0.00010958,2]
[344801943,1733793043729,-191.50160418,0.00010958,2]
[344801944,1733793043743,-308.49839582,0.00010958,2]
[344801945,1733793043752,-500.0,0.00010958,2]
[344801946,1733793043761,-500.0,0.00010958,2]
[344801947,1733793043771,-283.1,0.00010958,2]
[344801948,1733793043780,-500.0,0.00010958,2]
[344801949,1733793043789,-500.0,0.00010958,2]
[344801950,1733793043799,-649.95,0.00010958,2]
[344801951,1733793043808,-649.95,0.00010958,2]
[344801952,1733793043818,-649.95,0.00010958,2]
[344801953,1733793043827,-649.95,0.00010958,2]
[344801954,1733793043836,-649.95,0.00010958,2]
[344801955,1733793043844,-649.95,0.00010958,2]
[344801956,1733793043853,-649.95,0.00010958,2]
[344801957,1733793043862,-649.95,0.00010958,2]
[344801958,1733793043872,-500.0,0.00010958,2]
[344801959,1733793043882,-649.95,0.00010958,2]
[344801960,1733793043891,-628.01,0.00010958,2]
[344801961,1733793043901,-649.95,0.00010958,2]
[344801962,1733793043911,-649.95,0.00010958,2]
[344801963,1733793043920,-649.95,0.00010958,2]
[344801964,1733793043930,-649.95,0.00010958,2]
[344801965,1733793043939,-649.95,0.00010958,2]
[344801966,1733793043948,-500.0,0.00010958,2]
[344801967,1733793043958,-500.0,0.00010958,2]
[344801969,1733793043967,-500.0,0.00010958,2]
[344801971,1733793043976,-367.2,0.00010958,2]
[344801973,1733793043986,-500.0,0.00010958,2]
[344801974,1733793043995,-500.0,0.00010958,2]
[344801975,1733793044004,-500.0,0.00010958,2]
[344801976,1733793044014,-500.0,0.00010958,2]
[344801977,1733793044023,-500.0,0.00010958,2]
[344801978,1733793044032,-500.0,0.00010958,2]
[344801979,1733793044041,-500.0,0.00010958,2]
[344801980,1733793044051,-500.0,0.00010958,2]
[344801981,1733793044060,-500.0,0.00010958,2]
[344801982,1733793044068,-500.0,0.00010958,2]
[344801983,1733793044077,-500.0,0.00010958,2]
[344801984,1733793044087,-500.0,0.00010958,2]
[344801985,1733793044097,-500.0,0.00010958,2]
[344801986,1733793044106,-500.0,0.00010958,2]
[344801987,1733793044116,-500.0,0.00010958,2]
[344801988,1733793044130,-500.0,0.00010958,2]
[344801989,1733793044140,-500.0,0.00010958,2]
[344801990,1733793044149,-500.0,0.00010958,2]